lending/lending_fUSD_20251121
["ID","MTS","AMOUNT","RATE_DAILY","PERIOD"]
[394592339,1763745064443,-500.0,0.00036,30]
[394592340,1763745064453,-500.0,0.00036,30]
[394592341,1763745064462,-500.0,0.00036,30]
[394592342,1763745064471,-2512.81289631,0.00036,2]
[394592343,1763745064480,-5000.0,0.0003602,2]
[394592344,1763745064490,-500.0,0.00036027,2]
[394592345,1763745064499,-500.0,0.00036027,60]
[394592346,1763745064508,-2538.1,0.00036039,2]
[394592347,1763745064518,-5000.0,0.00036053,2]
[394592348,1763745064528,-5000.0,0.00036059,2]
[394592349,1763745064537,-25000.0,0.00036075,2]
[394592350,1763745064546,-5000.0,0.00036077,2]
[394592351,1763745064556,-731.97957,0.00036088,30]
[394592352,1763745064565,-5000.0,0.00036091,2]
[394592353,1763745064574,-4611.32,0.00036107,2]
[394592354,1763745064584,-5000.0,0.00036116,2]
[394592355,1763745064598,-5000.0,0.00036137,2]
[394592356,1763745064607,-2538.1,0.00036157,2]
[394592357,1763745064617,-5000.0,0.00036162,2]
[394592358,1763745064627,-222.49808788,0.00036164,2]
[394592359,1763745064639,-500.0,0.00036164,60]
[394592360,1763745064648,-5000.0,0.00036185,2]
[394592361,1763745064657,-25000.0,0.00036186,2]
[394592362,1763745064668,-5000.0,0.00036214,2]
[394592363,1763745064677,-5000.0,0.0003623,2]
[394592364,1763745064687,-472.356,0.0003623,31]
[394592365,1763745064696,-472.356,0.0003623,31]
[394592366,1763745064706,-472.356,0.0003623,31]
[394592367,1763745064716,-472.355997,0.0003623,31]
[394592368,1763745064726,-337.197741,0.0003623,31]
[394592369,1763745064736,-337.197741,0.0003623,31]
[394592370,1763745064745,-337.197741,0.0003623,31]
[394592371,1763745064754,-337.19775,0.0003623,31]
[394592372,1763745064763,-3000.0,0.00036248,7]
[394592373,1763745064772,-5000.0,0.00036261,2]
[394592374,1763745064782,-5000.0,0.0003628,2]
[394592375,1763745064791,-574.491917,0.0003628,31]
[394592376,1763745064801,-574.491917,0.0003628,31]
[394592377,1763745064810,-574.491917,0.0003628,31]
[394592378,1763745064819,-574.491925,0.0003628,31]
[394592379,1763745064828,-3292.791222,0.0003628,28]
[394592380,1763745064837,-3292.791222,0.0003628,28]
[394592381,1763745064849,-3292.791222,0.0003628,28]
[394592382,1763745064858,-3292.791231,0.0003628,28]
[394592383,1763745064868,-151.0,0.0003628,31]
[394592384,1763745064877,-151.0,0.0003628,31]
[394592385,1763745064887,-731.97957,0.00036288,30]
[394592386,1763745064896,-161.638426,0.00036291,31]
[394592387,1763745064905,-161.638426,0.00036291,31]
[394592388,1763745064914,-161.638426,0.00036291,31]
[394592389,1763745064923,-161.638429,0.00036291,31]
[394592390,1763745064932,-151.0,0.00036291,31]
[394592391,1763745064941,-151.0,0.00036291,31]
[394592392,1763745064951,-25000.0,0.00036294,2]
[394592393,1763745064960,-299.305757,0.00036294,31]
[394592394,1763745064970,-151.0,0.00036294,31]
[394592395,1763745064979,-151.0,0.00036294,31]
[394592396,1763745064988,-306.652235,0.00036294,31]
[394592397,1763745064998,-306.652235,0.00036294,31]
[394592398,1763745065008,-306.652235,0.00036294,31]
[394592399,1763745065018,-306.652239,0.00036294,31]
[394592400,1763745065027,-500.0,0.00036301,60]
[394592401,1763745065037,-2500.0,0.00036307,2]
[394592402,1763745065047,-4557.71,0.00036325,2]
[394592403,1763745065056,-151.0,0.00036325,31]
[394592404,1763745065065,-151.0,0.00036325,31]
[394592405,1763745065075,-5000.0,0.00036338,2]
[394592406,1763745065085,-326.51707754,0.00036353,16]
[394592407,1763745065096,-5000.0,0.00036357,2]
[394592408,1763745065106,-223.84299385,0.00036359,120]
[394592409,1763745065115,-223.84299385,0.00036359,120]
[394592410,1763745065125,-224.57482387,0.00036359,120]
[394592411,1763745065135,-5000.0,0.00036398,2]
[394592412,1763745065144,-150.0,0.00036401,2]
[394592413,1763745065154,-301.88,0.00036401,2]
[394592414,1763745065163,-25000.0,0.00036421,2]
[394592415,1763745065172,-550.79,0.00036422,2]
[394592416,1763745065181,-550.79,0.00036422,2]
[394592417,1763745065190,-550.79,0.00036422,2]
[394592418,1763745065200,-820.52,0.00036429,2]
[394592419,1763745065209,-417.25,0.00036429,2]
[394592420,1763745065218,-417.25,0.00036429,2]
[394592421,1763745065227,-417.25,0.00036429,2]
[394592422,1763745065236,-169.64,0.00036429,2]
[394592423,1763745065245,-169.64,0.00036429,2]
[394592424,1763745065254,-567.48,0.00036429,2]
[394592425,1763745065264,-169.64,0.00036429,2]
[394592426,1763745065273,-24793.0,0.00036433,3]
[394592427,1763745065282,-151.0,0.00036435,31]
[394592428,1763745065292,-151.0,0.00036435,31]
[394592429,1763745065301,-151.0,0.00036435,31]
[394592430,1763745065310,-151.0,0.00036435,31]
[394592431,1763745065320,-500.0,0.00036438,60]
[394592432,1763745065329,-5000.0,0.00036447,2]
[394592433,1763745065339,-1661.61,0.00036447,2]
[394592434,1763745065350,-5000.0,0.0003648,2]
[394592435,1763745065360,-261.185169,0.00036486,31]
[394592436,1763745065369,-261.185169,0.00036486,31]
[394592437,1763745065378,-261.185169,0.00036486,31]
[394592438,1763745065387,-261.185169,0.00036486,31]
[394592439,1763745065396,-3314.46639152,0.00036486,2]
[394592440,1763745065406,-731.97957,0.00036488,30]
[394592441,1763745065415,-1476.73,0.0003651,2]
[394592442,1763745065424,-5000.0,0.00036528,2]
[394592443,1763745065434,-500.0,0.00036575,60]
[394592444,1763745065444,-25000.0,0.00036584,2]
[394592445,1763745065454,-6689.11,0.00036593,2]
[394592446,1763745065463,-5000.0,0.00036598,2]
[394592447,1763745065472,-500.0,0.00036622,120]
[394592448,1763745065482,-512.3,0.00036633,2]
[394592449,1763745065491,-5000.0,0.00036643,2]
[394592450,1763745065501,-5000.0,0.00036646,2]
[394592451,1763745065510,-5000.0,0.00036647,2]
[394592452,1763745065520,-5000.0,0.0003665,2]
[394592453,1763745065530,-5000.0,0.0003665,2]
[394592454,1763745065540,-5000.0,0.0003665,2]
[394592455,1763745065549,-5000.0,0.00036662,2]
[394592456,1763745065559,-5000.0,0.00036662,2]
[394592457,1763745065568,-608.62,0.00036669,2]
[394592458,1763745065578,-731.97957,0.00036688,30]
[394592459,1763745065588,-5000.0,0.00036696,2]
[394592460,1763745065599,-1868.74,0.000367,30]
[394592461,1763745065608,-500.0,0.00036712,60]
[394592462,1763745065618,-199.0,0.00036712,8]
[394592463,1763745065633,-1033.7,0.0003672,2]
[394592464,1763745065642,-5000.0,0.00036736,2]
[394592465,1763745065651,-5000.0,0.00036748,2]
[394592466,1763745065661,-5000.0,0.00036755,2]
[394592467,1763745065672,-5000.0,0.00036762,2]
[394592468,1763745065682,-657.5,0.00036786,2]
[394592469,1763745065691,-5000.0,0.00036793,2]
[394592470,1763745065700,-935.49,0.00036797,2]
[394592471,1763745065711,-1591.13593582,0.000368,2]
[394592472,1763745065720,-1931.31164886,0.000368,2]
[394592473,1763745065730,-5000.0,0.00036819,2]
[394592474,1763745065739,-25000.0,0.00036831,2]
[394592475,1763745065749,-4422.23,0.00036834,2]
[394592476,1763745065758,-500.0,0.00036849,60]
[394592477,1763745065768,-25000.0,0.0003685,2]
[394592478,1763745065777,-5000.0,0.00036857,2]
[394592479,1763745065788,-5000.0,0.00036864,2]
[394592480,1763745065798,-2439.9319,0.00036888,7]
[394592481,1763745065808,-731.97957,0.00036888,30]
[394592482,1763745065818,-211.0,0.0003689,30]
[394592483,1763745065829,-1055.48207517,0.000369,2]
[394592484,1763745065838,-389.90015136,0.000369,2]
[394592485,1763745065850,-13959.14821912,0.0003691,2]
[394592486,1763745065859,-439.08,0.00036965,60]
[394592487,1763745065869,-265.38756106,0.00036986,60]
[394592488,1763745065878,-5263.23,0.00036986,30]
[394592489,1763745065887,-3073.79,0.00036993,2]
[394592490,1763745065897,-163.63832709,0.00037,2]
[394592491,1763745065906,-596.0,0.00037,2]
[394592492,1763745065915,-5049.0207328,0.00037,2]
[394592493,1763745065925,-1035048.09763787,0.00037,2]
[394592494,1763745065934,-257553.33315771,0.00037,2]
[394592495,1763745066604,-1341.3399984,0.00037,2]
[394592496,1763745066620,-1070.94752691,0.00037,2]
[394592497,1763745066636,-1570.272397,0.00037,2]
[394592498,1763745066646,-282.38501111,0.00037,2]
[394592499,1763745066658,-850.16651368,0.00037,2]
[394592500,1763745066671,-835.91291961,0.00037,2]
[394592501,1763745066682,-326.43564808,0.00037,2]
[394592502,1763745066694,-253.8994,0.00037,2]
[394592503,1763745066709,-701.85012966,0.00037,2]
[394592504,1763745067755,-6641.42505376,0.00037,2]
[394592505,1763745067771,-19584.5486778,0.00037,2]
[394592506,1763745067833,-1151.60306167,0.00037,2]
[394592507,1763745067962,-957.74,0.00016768,2]
[394592508,1763745067972,-177.54,0.00019926,2]
[394592509,1763745067982,-150.0,0.00028182,2]
[394592510,1763745067992,-1101.58,0.000356,2]
[394592511,1763745068001,-348.71,0.00036429,2]
[394592512,1763745068012,-40847.38738294,0.00037,2]
[394592513,1763745068024,-597.84377393,0.00037,2]
[394592514,1763745068036,-1715.27054693,0.00037,2]
[394592515,1763745068049,-316.16713008,0.00037,2]
[394592516,1763745068061,-479.21540613,0.00037,2]
[394592517,1763745068374,-792.0,0.00018365,2]
[394592518,1763745068384,-188.68508108,0.000188,2]
[394592519,1763745068395,-300.0,0.00021478,2]
[394592520,1763745068404,-300.0,0.00021496,2]
[394592521,1763745068414,-300.0,0.00021598,2]
[394592522,1763745068424,-300.0,0.00021614,2]
[394592523,1763745068434,-300.0,0.00021839,2]
[394592524,1763745068443,-300.0,0.00021846,2]
[394592525,1763745068453,-300.0,0.00021944,2]
[394592526,1763745068463,-417.12,0.00026526,2]
[394592527,1763745068472,-701.23,0.00035027,2]
[394592528,1763745068482,-90890.58751894,0.00037,2]
[394592529,1763745068508,-853.71485502,0.00037,2]
[394592530,1763745068519,-13160.72947804,0.00037,2]
[394592532,1763745362676,274.09,0.00022,30]
[394592535,1763745458085,1402.38369974,0.00022,30]
[394592538,1763745563902,151.29,7.501e-05,2]
[394592539,1763745564117,151.29,7.97e-05,2]
[394592540,1763745564568,151.29,8.439e-05,2]
[394592541,1763745564619,151.29,8.908e-05,2]
[394592542,1763745564839,151.29,9.377e-05,2]
[394592543,1763745565039,151.29,9.845e-05,2]
[394592544,1763745565687,151.29,0.00010314,2]
[394592545,1763745565928,151.29,0.00010783,2]
[394592546,1763745566125,151.29,0.00011252,2]
[394592547,1763745566865,151.29,0.00011721,2]
[394592548,1763745566967,151.29,0.00012189,2]
[394592549,1763745567119,151.29,0.00012658,2]
[394592550,1763745567238,151.29,0.00013127,2]
[394592551,1763745567293,151.29,0.00013596,2]
[394592552,1763745567495,151.29,0.00014065,2]
[394592553,1763745567731,151.29,0.00014534,2]
[394592562,1763745919234,1332.93219697,9e-05,2]
[394592563,1763745919260,1664.35442257,9e-05,2]
[394592565,1763745944398,150.0,0.00015479,120]
[394592566,1763745961164,8335.64557743,8e-05,2]
[394592567,1763745961188,2182.09568176,8e-05,2]
[394592568,1763745965133,2178.12252851,0.00011,2]
[394592569,1763745987001,2033.05218853,0.00015,2]
[394592571,1763746034550,300.0,0.000159,5]
[394592572,1763746079061,1000.0,0.00013699,2]
[394592573,1763746101394,389.03112765,7.888e-05,2]
[394592574,1763746108114,222.46791492,0.0001,2]
[394592575,1763746113827,266.50606656,0.000107,2]
[394592577,1763746116549,1113.49113025,0.00014999,2]
[394592578,1763746121513,615.23336182,0.0001,2]
[394592579,1763746121532,2674.53587438,0.0001,2]
[394592597,1763746174012,151.0,0.00015,2]
[394592602,1763746231989,-151.29,0.00015002,2]
[394592603,1763746232001,-195.0,0.00015006,2]
[394592604,1763746232013,-250.0,0.00015009,2]
[394592606,1763746232022,-195.0,0.00015016,2]
[394592608,1763746232032,-63.7731274,0.00015029,2]
[394592611,1763746232057,-131.11857226,0.00015029,2]
[394592612,1763746232068,-195.0,0.00015083,2]
[394592613,1763746232078,-184.61086334,0.00015331,2]
[394592614,1763746232090,-184.61086334,0.00015381,2]
[394592615,1763746232102,-1200.0,0.00015399,2]
[394592616,1763746232111,-300.0,0.00015399,2]
[394592617,1763746232122,-3661.84917677,0.000154,2]
[394592618,1763746232136,-9824.82325059,0.000154,2]
[394592619,1763746232158,-195.50917891,0.00015431,2]
[394592620,1763746232168,-32815.1675705,0.00015431,2]
[394592621,1763746232181,-480.71,0.00015431,2]
[394592622,1763746232431,-1800.0,0.00015431,2]
[394592623,1763746232467,-925.84284746,0.00015431,2]
[394592624,1763746232479,-391118.54160955,0.00015431,2]
[394592625,1763746232490,-26444.6760748,0.00015431,2]
[394592626,1763746232502,-21837.71836461,0.00015431,2]
[394592627,1763746232514,-47907.86513183,0.00015431,2]
[394592628,1763746232526,-12871.20848459,0.00015431,2]
[394592629,1763746232538,-909.85936468,0.00015431,2]
[394592630,1763746232551,-556.64674786,0.00015431,2]
[394592631,1763746232563,-298.4903234,0.00015431,2]
[394592632,1763746232574,-344.17171453,0.00015431,2]
[394592633,1763746232586,-301.0,0.00015431,2]
[394592634,1763746232597,-877.20125783,0.00015431,2]
[394592635,1763746232609,-346.84803172,0.00015431,2]
[394592653,1763746238155,-220164.05247664,0.00015431,2]
[394592654,1763746238166,-184.61086334,0.00015431,2]
[394592655,1763746238178,-1000.0,0.00015432,2]
[394592656,1763746238189,-2500.0,0.00015432,2]
[394592657,1763746238200,-162.10037775,0.00015473,2]
[394592658,1763746238211,-150.0,0.00015479,2]
[394592659,1763746238222,-500.0,0.00015531,2]
[394592660,1763746238233,-500.0,0.00015531,2]
[394592661,1763746238244,-500.0,0.00015531,2]
[394592662,1763746238255,-500.0,0.00015531,2]
[394592663,1763746238265,-2984.595,0.00015531,2]
[394592664,1763746238280,-220.103,0.00015531,2]
[394592665,1763746238292,-500.0,0.00015531,2]
[394592666,1763746238303,-646.38,0.00015531,2]
[394592667,1763746238315,-500.0,0.00015531,2]
[394592668,1763746238326,-500.0,0.00015531,2]
[394592669,1763746238337,-361.37578084,0.00015531,2]
[394592670,1763746238347,-500.0,0.00015531,2]
[394592671,1763746238358,-500.0,0.00015531,2]
[394592672,1763746238371,-500.0,0.00015531,2]
[394592673,1763746238382,-500.0,0.00015531,2]
[394592674,1763746238393,-500.0,0.00015531,2]
[394592675,1763746238403,-500.0,0.00015531,2]
[394592676,1763746238414,-500.0,0.00015531,2]
[394592677,1763746238424,-500.0,0.00015531,2]
[394592678,1763746238436,-500.0,0.00015531,2]
[394592679,1763746238448,-500.0,0.00015531,2]
[394592680,1763746238459,-500.0,0.00015531,2]
[394592681,1763746238470,-500.0,0.00015531,2]
[394592682,1763746238480,-199.08091532,0.00015531,2]
[394592683,1763746238491,-243.49810257,0.00015531,2]
[394592684,1763746238503,-499.99999999,0.00015531,2]
[394592685,1763746238514,-500.0,0.00015531,2]
[394592686,1763746238527,-500.0,0.00015531,2]
[394592687,1763746238537,-500.0,0.00015531,2]
[394592688,1763746238548,-500.0,0.00015531,2]
[394592689,1763746238558,-500.0,0.00015531,2]
[394592690,1763746238569,-341.38227933,0.00015531,2]
[394592691,1763746238580,-500.0,0.00015573,2]
[394592692,1763746238591,-491.81969162,0.00015573,2]
[394592693,1763746238603,-280.46189862,0.00015573,2]
[394592694,1763746238614,-500.0,0.00015573,2]
[394592695,1763746238625,-502.15487194,0.00015573,2]
[394592696,1763746238636,-500.0,0.00015573,2]
[394592697,1763746238647,-151.0,0.00015898,2]
[394592698,1763746238658,-2000.0,0.00015962,2]
[394592699,1763746238668,-2000.0,0.00015962,2]
[394592700,1763746238679,-229.46716056,0.00016438,2]
[394592701,1763746238691,-500.0,0.00016438,2]
[394592702,1763746238702,-193.0,0.00016503,2]
[394592703,1763746238713,-300.0,0.00016503,2]
[394592705,1763746238724,-300.0,0.00016503,2]
[394592707,1763746238734,-300.0,0.00016503,2]
[394592708,1763746238746,-300.0,0.00016503,2]
[394592710,1763746238758,-300.0,0.00016503,2]
[394592712,1763746238770,-195.0,0.00016503,2]
[394592713,1763746238783,-300.0,0.00016503,2]
[394592714,1763746238795,-250.0,0.00016503,2]
[394592715,1763746238806,-195.0,0.00016503,2]
[394592716,1763746238817,-251.8803234,0.00016503,2]
[394592717,1763746238830,-500.0,0.00016712,2]
[394592719,1763746238840,-420.0,0.00016847,2]
[394592721,1763746238850,-1680.0,0.00016932,2]
[394592722,1763746238860,-500.0,0.00016973,2]
[394592723,1763746238871,-500.0,0.00016986,2]
[394592724,1763746238881,-250.0,0.00017,2]
[394592725,1763746238891,-2010009.61479936,0.00017,2]
[394592726,1763746238900,-158.11069184,0.0001716,2]
[394592727,1763746238911,-500.0,0.0001726,2]
[394592728,1763746238923,-700.0,0.000173,6]
[394592729,1763746238935,-1100.0,0.000174,6]
[394592730,1763746238947,-1400.0,0.000175,6]
[394592731,1763746238959,-426.56612961,0.00017518,2]
[394592732,1763746238972,-500.0,0.00017534,2]
[394592733,1763746238984,-158.11069184,0.00017571,2]
[394592734,1763746238999,-1800.0,0.000176,6]
[394592735,1763746239012,-300.0,0.000177,6]
[394592736,1763746239026,-403.0,0.000177,5]
[394592737,1763746239038,-300.0,0.000178,6]
[394592738,1763746239051,-500.0,0.00017808,2]
[394592739,1763746239063,-300.0,0.000179,6]
[394592740,1763746239074,-233.93048422,0.00017908,2]
[394592741,1763746239086,-158.11069184,0.00017982,2]
[394592742,1763746239097,-1516.04188714,0.00017982,2]
[394592743,1763746239108,-424.884314,0.00017999,2]
[394592744,1763746239119,-1866826.11883287,0.00018,2]
[394592750,1763746240241,-151.0,0.00016503,2]
[394592751,1763746240251,-2068.24783429,0.00017982,2]
[394592752,1763746240262,-1580.75216571,0.00018,2]
[394592753,1763746240421,-85350.0,0.00018,2]
[394592754,1763746240434,-776.90309751,0.00018,2]
[394592755,1763746240453,-2989.75031049,0.00018,2]
[394592756,1763746240521,-8528.0,0.00018,2]
[394592757,1763746240637,-2329.9381569,0.00018,2]
[394592765,1763746246602,-2500.0,0.00015432,2]
[394592766,1763746246611,-478539.14521673,0.00018,2]
[394592778,1763746410871,200.0,0.000149,5]
[394592779,1763746466530,-1005.44773,0.00015331,2]
[394592780,1763746466557,-300.0,0.00015331,2]
[394592781,1763746466590,-300.0,0.00015331,2]
[394592783,1763746568157,-300.0,0.0001533,2]
[394592784,1763746568188,-1200.0,0.0001533,2]
[394592785,1763746568221,-300.0,0.0001533,2]
[394592786,1763746568251,-195.0,0.0001533,2]
[394592787,1763746568281,-250.0,0.00015331,2]
[394592788,1763746568314,-195.0,0.00015331,2]
[394592789,1763746654209,-940.0,0.00015331,2]
[394592790,1763746715810,-1880.0,0.00015331,2]
[394592792,1763746875429,-150.65550955,0.00015252,2]
[394592793,1763746875457,-1790.67378503,0.00015252,2]
[394592794,1763746875483,-162.10037775,0.00015252,2]
[394592795,1763746875510,-300.0,0.00015329,2]
[394592796,1763746875540,-300.0,0.0001533,2]
[394592797,1763746875567,-287.0,0.0001533,2]
[394592798,1763746875596,-819.14065534,0.0001533,2]
[394592804,1763747167232,-2500.0,0.00015025,2]
[394592806,1763747189445,168.49,0.00013172,2]
[394592807,1763747205162,-820.362,0.00015025,2]
[394592808,1763747205185,-244.865,0.00015025,2]
[394592809,1763747205207,-195.0,0.00015178,2]
[394592810,1763747205230,-1200.0,0.0001523,2]
[394592811,1763747205249,-300.0,0.00015231,2]
[394592812,1763747205270,-300.0,0.00015231,2]
[394592813,1763747205291,-1000.0,0.00015232,2]
[394592814,1763747205312,-2739.773,0.00015232,2]
[394592815,1763747229856,1200.0,0.000149,5]
[394592932,1763747288912,-195.0,0.00015232,2]
[394592933,1763747288939,-2705.0,0.00015232,2]
[394593033,1763747432394,-984.13374169,0.00015153,2]
[394593036,1763747432418,-271.037225,0.00015153,2]
[394593038,1763747432429,-484.112775,0.00015153,2]
[394593042,1763747432450,-2367.40039744,0.00015153,2]
[394593044,1763747432460,-1200.0,0.00015231,2]
[394593046,1763747432470,-170.4486718,0.00015231,2]
[394593048,1763747432480,-489.35664072,0.00015231,2]
[394593049,1763747432490,-21367.668,0.00015232,2]
[394593050,1763747432499,-73852.95784635,0.00015232,2]
[394593072,1763747438336,-500.0,0.00015231,2]
[394593073,1763747438346,-500.0,0.00015231,2]
[394593074,1763747438357,-500.0,0.00015231,2]
[394593075,1763747438367,-500.0,0.00015231,2]
[394593076,1763747438380,-500.0,0.00015231,2]
[394593077,1763747438391,-500.0,0.00015231,2]
[394593078,1763747438401,-500.0,0.00015231,2]
[394593079,1763747438411,-500.0,0.00015231,2]
[394593080,1763747438422,-500.0,0.00015231,2]
[394593081,1763747438433,-500.0,0.00015231,2]
[394593082,1763747438443,-500.0,0.00015231,2]
[394593085,1763747438720,-500.0,0.00015231,2]
[394593086,1763747438744,-500.0,0.00015231,2]
[394593087,1763747438754,-500.0,0.00015231,2]
[394593088,1763747438766,-500.0,0.00015231,2]
[394593089,1763747438776,-500.0,0.00015231,2]
[394593090,1763747438787,-500.0,0.00015231,2]
[394593091,1763747438796,-500.0,0.00015231,2]
[394593092,1763747438806,-500.0,0.00015231,2]
[394593093,1763747438816,-500.0,0.00015231,2]
[394593094,1763747438826,-500.0,0.00015231,2]
[394593095,1763747438836,-500.0,0.00015231,2]
[394593096,1763747438847,-500.0,0.00015231,2]
[394593097,1763747438856,-500.0,0.00015231,2]
[394593098,1763747438866,-500.0,0.00015231,2]
[394593099,1763747438876,-500.0,0.00015231,2]
[394593100,1763747438887,-646.38036201,0.00015231,2]
[394593101,1763747438897,-500.0,0.00015231,2]
[394593102,1763747438911,-500.0,0.00015231,2]
[394593103,1763747438921,-152.21595884,0.00015232,2]
[394593104,1763747438949,-896.94,0.00015232,2]
[394593105,1763747438969,-685097.88619481,0.00015232,2]
[394593106,1763747438980,-195.0,0.00015253,2]
[394593107,1763747438990,-1611.6064065,0.00015273,2]
[394593108,1763747438999,-195.0,0.000153,2]
[394593109,1763747439009,-6240.0,0.00015331,2]
[394593110,1763747439022,-500.0,0.00015331,2]
[394593111,1763747439032,-500.0,0.00015331,2]
[394593112,1763747439042,-500.0,0.00015331,2]
[394593113,1763747439052,-566.75,0.00015331,2]
[394593114,1763747439062,-566.75,0.00015331,2]
[394593115,1763747439073,-566.75,0.00015331,2]
[394593116,1763747439083,-500.0,0.00015331,2]
[394593117,1763747439093,-500.0,0.00015331,2]
[394593118,1763747439103,-500.0,0.00015331,2]
[394593119,1763747439113,-500.0,0.00015331,2]
[394593120,1763747439122,-704.66,0.00015331,2]
[394593121,1763747439132,-704.66,0.00015331,2]
[394593122,1763747439143,-704.66,0.00015331,2]
[394593123,1763747439153,-500.0,0.00015331,2]
[394593124,1763747439163,-500.0,0.00015331,2]
[394593125,1763747439173,-500.0,0.00015331,2]
[394593126,1763747439183,-500.0,0.00015331,2]
[394593127,1763747439194,-500.0,0.00015331,2]
[394593128,1763747439205,-624.87820617,0.00015331,2]
[394593129,1763747439216,-500.0,0.00015331,2]
[394593130,1763747439226,-500.0,0.00015331,2]
[394593131,1763747439236,-500.0,0.00015331,2]
[394593132,1763747439251,-500.0,0.00015331,2]
[394593133,1763747439261,-500.0,0.00015331,2]
[394593134,1763747439273,-500.0,0.00015331,2]
[394593135,1763747439287,-681.58,0.00015331,2]
[394593136,1763747439298,-500.0,0.00015373,2]
[394593137,1763747439309,-500.0,0.00015373,2]
[394593138,1763747439319,-506.79679862,0.00015373,2]
[394593139,1763747439329,-1052.98,0.00015432,2]
[394593140,1763747439339,-283.5254,0.00015432,2]
[394593141,1763747439350,-4106.68413911,0.00015458,2]
[394593142,1763747439359,-500.0,0.00015531,2]
[394593143,1763747439371,-500.0,0.00015531,2]
[394593144,1763747439384,-500.0,0.00015531,2]
[394593145,1763747439394,-1611.60640644,0.00015565,2]
[394593146,1763747439404,-681.58,0.00015605,2]
[394593147,1763747439415,-4106.68413911,0.00015763,2]
[394593148,1763747439427,-172.45,0.00015832,2]
[394593149,1763747439437,-1611.60640644,0.00015857,2]
[394593150,1763747439448,-681.58,0.00015879,2]
[394593151,1763747439461,-200.0,0.00015885,2]
[394593152,1763747439473,-1000.0,0.00015921,2]
[394593153,1763747439488,-4106.68413911,0.00016069,2]
[394593154,1763747439499,-1611.60640644,0.00016149,2]
[394593155,1763747439510,-681.58,0.00016153,2]
[394593156,1763747439524,-150.0,0.000162,2]
[394593157,1763747439535,-150.0,0.000162,2]
[394593158,1763747439547,-150.0,0.000162,2]
[394593159,1763747439558,-150.0,0.000162,2]
[394593160,1763747439570,-150.0,0.000162,2]
[394593161,1763747439580,-150.0,0.000162,2]
[394593162,1763747439591,-150.0,0.000162,2]
[394593163,1763747439603,-153.05562108,0.000162,2]
[394593164,1763747439613,-150.0,0.000162,2]
[394593165,1763747439623,-150.0,0.000162,2]
[394593166,1763747439634,-150.0,0.000162,2]
[394593167,1763747439644,-150.0,0.000162,2]
[394593168,1763747439654,-150.0,0.000162,2]
[394593169,1763747439664,-150.0,0.000162,2]
[394593170,1763747439675,-150.0,0.00016235,2]
[394593171,1763747439685,-1852.42,0.00016235,2]
[394593172,1763747439696,-999.0,0.00016303,3]
[394593173,1763747439706,-150.0,0.0001632,2]
[394593174,1763747439716,-150.0,0.00016338,2]
[394593175,1763747439728,-150.0,0.0001635,2]
[394593176,1763747439741,-150.0,0.0001635,2]
[394593177,1763747439752,-150.0,0.00016364,2]
[394593178,1763747439763,-4106.68413911,0.00016374,2]
[394593179,1763747439774,-150.0,0.0001638,2]
[394593180,1763747439784,-150.0,0.000164,2]